[Event "Titled Tuesday Blitz August 08 Early 2023"]
[White "NicolaiMaxime"]
[Black "Zeynalli, Rashad"]
[BlackFideId "13403320"]
[WhiteElo "2508"]
[BlackElo "2653"]
[Result "1/2-1/2"]
[Round "7"]
[TimeControl "180+1"]
[Date "2023.08.08"]
[WhiteClock "0:01:03"]
[BlackClock "0:01:24"]
[Board "88"]

1. e4 {[%clk 0:03:00]}  c6 {[%clk 0:02:49]} 2. d4 {[%clk 0:02:58]}  d5 {[%clk 0:02:49]} 3. exd5 {[%clk 0:02:59]}  cxd5 {[%clk 0:02:49]} 4. Nf3 {[%clk 0:03:00]}  Nc6 {[%clk 0:02:49]} 5. Bd3 {[%clk 0:02:59]}  Bg4 {[%clk 0:02:47]} 6. c3 {[%clk 0:02:59]}  e6 {[%clk 0:02:44]} 7. h3 {[%clk 0:02:59]}  Bh5 {[%clk 0:02:43]} 8. O-O {[%clk 0:02:59]}  Nf6 {[%clk 0:02:42]} 9. Bg5 {[%clk 0:02:58]}  Be7 {[%clk 0:02:39]} 10. Nbd2 {[%clk 0:02:58]}  Bg6 {[%clk 0:02:36]} 11. Bxg6 {[%clk 0:02:56]}  hxg6 {[%clk 0:02:36]} 12. b4 {[%clk 0:02:49]}  Ne4 {[%clk 0:02:31]} 13. Bxe7 {[%clk 0:02:48]}  Qxe7 {[%clk 0:02:30]} 14. Nxe4 {[%clk 0:02:48]}  dxe4 {[%clk 0:02:31]} 15. Nd2 {[%clk 0:02:48]}  Qh4 {[%clk 0:02:28]} 16. Qe2 {[%clk 0:02:47]}  f5 {[%clk 0:02:27]} 17. f3 {[%clk 0:02:32]}  O-O-O {[%clk 0:02:18]} 18. fxe4 {[%clk 0:02:27]}  Kb8 {[%clk 0:02:16]} 19. b5 {[%clk 0:02:24]}  Na5 {[%clk 0:02:10]} 20. Nb3 {[%clk 0:02:18]}  Nxb3 {[%clk 0:02:07]} 21. axb3 {[%clk 0:02:19]}  Qxe4 {[%clk 0:01:59]} 22. Qxe4 {[%clk 0:02:18]}  fxe4 {[%clk 0:02:00]} 23. Rae1 {[%clk 0:02:18]}  Rh5 {[%clk 0:01:57]} 24. b6 {[%clk 0:02:13]}  Rb5 {[%clk 0:01:51]} 25. bxa7+ {[%clk 0:02:12]}  Kxa7 {[%clk 0:01:52]} 26. b4 {[%clk 0:02:08]}  e5 {[%clk 0:01:52]} 27. dxe5 {[%clk 0:02:01]}  Rxe5 {[%clk 0:01:53]} 28. Rf7 {[%clk 0:02:01]}  Rd3 {[%clk 0:01:31]} 29. Rxg7 {[%clk 0:01:58]}  Rxc3 {[%clk 0:01:31]} 30. Rxg6 {[%clk 0:01:52]}  Rb3 {[%clk 0:01:32]} 31. Ra1+ {[%clk 0:01:42]}  Kb8 {[%clk 0:01:31]} 32. Rg8+ {[%clk 0:01:43]}  Kc7 {[%clk 0:01:31]} 33. Rg7+ {[%clk 0:01:43]}  Kb6 {[%clk 0:01:28]} 34. Rg6+ {[%clk 0:01:41]}  Kc7 {[%clk 0:01:25]} 35. Rg7+ {[%clk 0:01:40]}  Kb6 {[%clk 0:01:25]} 36. Rg6+ {[%clk 0:01:23]}  Kc7 {[%clk 0:01:24]} 37. Rg7+ {[%clk 0:01:03]} 1/2-1/2


[Site "https://www.chess.com"]

[Event "Titled Tuesday Blitz August 08 Early 2023"]
[White "Nathan, Nitish"]
[Black "benny_aizenberg"]
[WhiteFideId "30927870"]
[WhiteElo "2401"]
[BlackElo "2646"]
[Result "1-0"]
[Round "7"]
[TimeControl "180+1"]
[Date "2023.08.08"]
[WhiteClock "0:00:26"]
[BlackClock "0:00:00"]
[Board "90"]

1. d4 {[%clk 0:03:00]}  f5 {[%clk 0:02:59]} 2. Bf4 {[%clk 0:03:00]}  Nf6 {[%clk 0:03:00]} 3. e3 {[%clk 0:03:00]}  d6 {[%clk 0:03:00]} 4. Nf3 {[%clk 0:03:00]}  g6 {[%clk 0:02:59]} 5. Be2 {[%clk 0:03:00]}  Bg7 {[%clk 0:03:00]} 6. h3 {[%clk 0:03:00]}  O-O {[%clk 0:03:00]} 7. O-O {[%clk 0:02:59]}  Qe8 {[%clk 0:03:00]} 8. c4 {[%clk 0:02:59]}  Nbd7 {[%clk 0:03:00]} 9. Nc3 {[%clk 0:02:59]}  e5 {[%clk 0:03:01]} 10. Bh2 {[%clk 0:02:59]}  c6 {[%clk 0:02:59]} 11. b4 {[%clk 0:02:58]}  f4 {[%clk 0:02:54]} 12. c5 {[%clk 0:02:52]}  e4 {[%clk 0:02:42]} 13. Nd2 {[%clk 0:02:51]}  dxc5 {[%clk 0:02:36]} 14. bxc5 {[%clk 0:02:48]}  f3 {[%clk 0:02:12]} 15. gxf3 {[%clk 0:02:47]}  exf3 {[%clk 0:02:09]} 16. Bxf3 {[%clk 0:02:45]}  Qe6 {[%clk 0:02:08]} 17. Bg2 {[%clk 0:02:41]}  Nd5 {[%clk 0:01:57]} 18. Nxd5 {[%clk 0:02:40]}  cxd5 {[%clk 0:01:57]} 19. e4 {[%clk 0:02:33]}  Bxd4 {[%clk 0:01:51]} 20. exd5 {[%clk 0:02:31]}  Qf6 {[%clk 0:01:52]} 21. Ne4 {[%clk 0:02:28]}  Qg7 {[%clk 0:01:49]} 22. Rc1 {[%clk 0:02:25]}  Ne5 {[%clk 0:01:43]} 23. c6 {[%clk 0:02:05]}  bxc6 {[%clk 0:01:41]} 24. dxc6 {[%clk 0:02:06]}  Ba6 {[%clk 0:01:40]} 25. Re1 {[%clk 0:01:43]}  Nd3 {[%clk 0:01:39]} 26. Qa4 {[%clk 0:01:30]}  Nxe1 {[%clk 0:00:49]} 27. Rxe1 {[%clk 0:01:17]}  Rae8 {[%clk 0:00:49]} 28. Qxa6 {[%clk 0:01:05]}  Bxf2+ {[%clk 0:00:48]} 29. Nxf2 {[%clk 0:00:49]}  Rxe1+ {[%clk 0:00:47]} 30. Bf1 {[%clk 0:00:49]}  Qd4 {[%clk 0:00:47]} 31. Bg3 {[%clk 0:00:48]}  Re3 {[%clk 0:00:29]} 32. Qc4+ {[%clk 0:00:43]}  Qxc4 {[%clk 0:00:29]} 33. Bxc4+ {[%clk 0:00:44]}  Kg7 {[%clk 0:00:30]} 34. Bd6 {[%clk 0:00:41]}  Rc8 {[%clk 0:00:13]} 35. c7 {[%clk 0:00:41]}  Re1+ {[%clk 0:00:05]} 36. Kg2 {[%clk 0:00:41]}  Rc1 {[%clk 0:00:05]} 37. Be6 {[%clk 0:00:39]}  R8xc7 {[%clk 0:00:05]} 38. Bxc7 {[%clk 0:00:39]}  Rxc7 {[%clk 0:00:06]} 39. Bb3 {[%clk 0:00:39]}  Kf6 {[%clk 0:00:07]} 40. Kf3 {[%clk 0:00:38]}  Ke5 {[%clk 0:00:07]} 41. Ke3 {[%clk 0:00:38]}  Rc3+ {[%clk 0:00:06]} 42. Nd3+ {[%clk 0:00:37]}  Kf5 {[%clk 0:00:07]} 43. Kd4 {[%clk 0:00:37]}  Rc7 {[%clk 0:00:07]} 44. Nc5 {[%clk 0:00:35]}  g5 {[%clk 0:00:07]} 45. Be6+ {[%clk 0:00:34]}  Kf4 {[%clk 0:00:07]} 46. Bg4 {[%clk 0:00:34]}  Re7 {[%clk 0:00:07]} 47. Ne6+ {[%clk 0:00:34]}  Kg3 {[%clk 0:00:07]} 48. Nxg5 {[%clk 0:00:34]}  Rg7 {[%clk 0:00:06]} 49. Ne4+ {[%clk 0:00:34]}  Kf4 {[%clk 0:00:04]} 50. Nc5 {[%clk 0:00:31]}  Rg6 {[%clk 0:00:03]} 51. Ne6+ {[%clk 0:00:30]}  Kg3 {[%clk 0:00:03]} 52. Ke5 {[%clk 0:00:29]}  Rh6 {[%clk 0:00:02]} 53. Ng5 {[%clk 0:00:26]}  Ra6 {[%clk 0:00:00]} 54. Ne4+ {[%clk 0:00:26]} 1-0


[Site "https://www.chess.com"]

[Event "Titled Tuesday Blitz August 08 Early 2023"]
[White "Freitag, Manfred"]
[Black "Lacasa Diaz, Jose Antonio"]
[WhiteFideId "1602004"]
[BlackFideId "2203375"]
[WhiteElo "2641"]
[BlackElo "2390"]
[Result "1/2-1/2"]
[Round "7"]
[TimeControl "180+1"]
[Date "2023.08.08"]
[WhiteClock "0:00:16"]
[BlackClock "0:00:10"]
[Board "91"]

1. e4 {[%clk 0:03:00]}  c5 {[%clk 0:02:58]} 2. Nf3 {[%clk 0:03:00]}  e6 {[%clk 0:02:58]} 3. d4 {[%clk 0:03:01]}  cxd4 {[%clk 0:02:58]} 4. Nxd4 {[%clk 0:03:01]}  Nf6 {[%clk 0:02:58]} 5. Nc3 {[%clk 0:03:02]}  d6 {[%clk 0:02:59]} 6. g4 {[%clk 0:03:01]}  e5 {[%clk 0:02:59]} 7. Nf5 {[%clk 0:02:59]}  h5 {[%clk 0:02:59]} 8. Bg5 {[%clk 0:03:00]}  hxg4 {[%clk 0:02:58]} 9. Nd5 {[%clk 0:02:59]}  Bxf5 {[%clk 0:02:58]} 10. Bxf6 {[%clk 0:02:59]}  gxf6 {[%clk 0:02:58]} 11. exf5 {[%clk 0:02:59]}  Rh4 {[%clk 0:02:59]} 12. c3 {[%clk 0:02:33]}  Nc6 {[%clk 0:02:22]} 13. Qb3 {[%clk 0:02:29]}  Rb8 {[%clk 0:02:06]} 14. O-O-O {[%clk 0:02:22]}  Bh6+ {[%clk 0:02:04]} 15. Kb1 {[%clk 0:02:22]}  Bg5 {[%clk 0:02:04]} 16. h3 {[%clk 0:02:08]}  gxh3 {[%clk 0:02:02]} 17. Rxh3 {[%clk 0:02:04]}  Rxh3 {[%clk 0:02:01]} 18. Bxh3 {[%clk 0:02:04]}  Kf8 {[%clk 0:02:01]} 19. Bg2 {[%clk 0:02:00]}  Kg7 {[%clk 0:01:49]} 20. Be4 {[%clk 0:02:00]}  Qh8 {[%clk 0:01:43]} 21. Rh1 {[%clk 0:01:47]}  Qd8 {[%clk 0:01:36]} 22. Qd1 {[%clk 0:01:32]}  Ne7 {[%clk 0:01:31]} 23. Qh5 {[%clk 0:01:29]}  Nxd5 {[%clk 0:01:25]} 24. Qh7+ {[%clk 0:01:22]}  Kf8 {[%clk 0:01:24]} 25. Bxd5 {[%clk 0:01:22]}  Qe8 {[%clk 0:01:21]} 26. Rh5 {[%clk 0:01:07]}  Ke7 {[%clk 0:01:16]} 27. Qg7 {[%clk 0:00:56]}  Qg8 {[%clk 0:00:48]} 28. Qxg8 {[%clk 0:00:32]}  Rxg8 {[%clk 0:00:47]} 29. Bxb7 {[%clk 0:00:33]}  Bf4 {[%clk 0:00:42]} 30. Bd5 {[%clk 0:00:32]}  Rg1+ {[%clk 0:00:40]} 31. Kc2 {[%clk 0:00:31]}  Rf1 {[%clk 0:00:41]} 32. Rh7 {[%clk 0:00:31]}  Rxf2+ {[%clk 0:00:39]} 33. Kb3 {[%clk 0:00:31]}  Bc1 {[%clk 0:00:38]} 34. Rxf7+ {[%clk 0:00:29]}  Ke8 {[%clk 0:00:38]} 35. Rxf6 {[%clk 0:00:29]}  Rxb2+ {[%clk 0:00:37]} 36. Ka4 {[%clk 0:00:29]}  Rc2 {[%clk 0:00:29]} 37. Kb4 {[%clk 0:00:27]}  Bd2 {[%clk 0:00:24]} 38. Rxd6 {[%clk 0:00:26]}  Bxc3+ {[%clk 0:00:23]} 39. Kb3 {[%clk 0:00:25]}  Rc1 {[%clk 0:00:19]} 40. f6 {[%clk 0:00:25]}  Bd4 {[%clk 0:00:10]} 41. Re6+ {[%clk 0:00:10]}  Kf8 {[%clk 0:00:10]} 42. Re7 {[%clk 0:00:07]}  Rf1 {[%clk 0:00:08]} 43. Rf7+ {[%clk 0:00:06]}  Ke8 {[%clk 0:00:09]} 44. Re7+ {[%clk 0:00:06]}  Kf8 {[%clk 0:00:09]} 45. Re6 {[%clk 0:00:05]}  e4 {[%clk 0:00:07]} 46. f7 {[%clk 0:00:05]}  Rxf7 {[%clk 0:00:06]} 47. Rxe4 {[%clk 0:00:05]}  Rf3+ {[%clk 0:00:04]} 48. Kc4 {[%clk 0:00:06]}  Bb6 {[%clk 0:00:04]} 49. Re6 {[%clk 0:00:05]}  Rf4+ {[%clk 0:00:04]} 50. Kb5 {[%clk 0:00:06]}  Rd4 {[%clk 0:00:04]} 51. Kc6 {[%clk 0:00:07]}  Rb4 {[%clk 0:00:03]} 52. Rf6+ {[%clk 0:00:07]}  Kg7 {[%clk 0:00:04]} 53. Rf7+ {[%clk 0:00:08]}  Kg6 {[%clk 0:00:05]} 54. Rd7 {[%clk 0:00:08]}  Kg5 {[%clk 0:00:05]} 55. Bb3 {[%clk 0:00:08]}  Rd4 {[%clk 0:00:05]} 56. Rd5+ {[%clk 0:00:09]}  Rxd5 {[%clk 0:00:05]} 57. Kxd5 {[%clk 0:00:10]}  Kf4 {[%clk 0:00:05]} 58. Kc6 {[%clk 0:00:11]}  Ke3 {[%clk 0:00:06]} 59. Kb5 {[%clk 0:00:11]}  Kd2 {[%clk 0:00:06]} 60. Ka6 {[%clk 0:00:12]}  Kc3 {[%clk 0:00:07]} 61. Be6 {[%clk 0:00:13]}  Kb2 {[%clk 0:00:07]} 62. Bb3 {[%clk 0:00:14]}  Ka3 {[%clk 0:00:07]} 63. Bf7 {[%clk 0:00:14]}  Kb2 {[%clk 0:00:08]} 64. Bb3 {[%clk 0:00:15]}  Ka3 {[%clk 0:00:09]} 65. Bf7 {[%clk 0:00:16]}  Kb2 {[%clk 0:00:10]} 66. Bb3 {[%clk 0:00:16]} 1/2-1/2


[Site "https://www.chess.com"]

[Event "Titled Tuesday Blitz August 08 Early 2023"]
[White "Zarnicki, Pablo"]
[Black "Srihari L R"]
[WhiteFideId "100137"]
[BlackFideId "46617116"]
[WhiteElo "2617"]
[BlackElo "2753"]
[Result "0-1"]
[Round "7"]
[TimeControl "180+1"]
[Date "2023.08.08"]
[WhiteClock "0:00:00"]
[BlackClock "0:00:10"]
[Board "95"]

1. e4 {[%clk 0:03:00]}  c5 {[%clk 0:02:39]} 2. Nf3 {[%clk 0:03:00]}  d6 {[%clk 0:02:38]} 3. Bb5+ {[%clk 0:03:00]}  Bd7 {[%clk 0:02:38]} 4. Bxd7+ {[%clk 0:03:00]}  Qxd7 {[%clk 0:02:38]} 5. c4 {[%clk 0:03:00]}  Nc6 {[%clk 0:02:38]} 6. Nc3 {[%clk 0:03:00]}  Nf6 {[%clk 0:02:38]} 7. O-O {[%clk 0:02:59]}  g6 {[%clk 0:02:38]} 8. d4 {[%clk 0:02:59]}  cxd4 {[%clk 0:02:38]} 9. Nxd4 {[%clk 0:03:00]}  Nxd4 {[%clk 0:02:38]} 10. Qxd4 {[%clk 0:03:00]}  Bg7 {[%clk 0:02:39]} 11. Bg5 {[%clk 0:02:57]}  O-O {[%clk 0:02:39]} 12. Qd2 {[%clk 0:02:55]}  Qc6 {[%clk 0:02:35]} 13. Qd3 {[%clk 0:02:14]}  h6 {[%clk 0:02:27]} 14. Bxf6 {[%clk 0:02:13]}  Bxf6 {[%clk 0:02:27]} 15. Nd5 {[%clk 0:02:14]}  Kg7 {[%clk 0:02:18]} 16. Nxf6 {[%clk 0:02:10]}  Kxf6 {[%clk 0:02:07]} 17. Qc3+ {[%clk 0:02:09]}  e5 {[%clk 0:02:06]} 18. f4 {[%clk 0:02:07]}  Kg7 {[%clk 0:02:06]} 19. fxe5 {[%clk 0:02:06]}  Qc5+ {[%clk 0:02:06]} 20. Kh1 {[%clk 0:02:00]}  dxe5 {[%clk 0:02:06]} 21. Rad1 {[%clk 0:01:57]}  Rac8 {[%clk 0:01:56]} 22. b3 {[%clk 0:01:55]}  Qe7 {[%clk 0:01:56]} 23. Rd5 {[%clk 0:01:54]}  f6 {[%clk 0:01:56]} 24. h3 {[%clk 0:01:51]}  Rc7 {[%clk 0:01:49]} 25. Rfd1 {[%clk 0:01:50]}  h5 {[%clk 0:01:47]} 26. a4 {[%clk 0:01:49]}  b6 {[%clk 0:01:45]} 27. Qd3 {[%clk 0:01:44]}  Rf7 {[%clk 0:01:43]} 28. Rd8 {[%clk 0:01:43]}  f5 {[%clk 0:01:22]} 29. exf5 {[%clk 0:01:38]}  Rxf5 {[%clk 0:01:21]} 30. Kh2 {[%clk 0:01:34]}  e4 {[%clk 0:01:11]} 31. Qc3+ {[%clk 0:01:27]}  Qe5+ {[%clk 0:01:08]} 32. Qxe5+ {[%clk 0:01:25]}  Rxe5 {[%clk 0:01:09]} 33. Kg3 {[%clk 0:01:15]}  e3 {[%clk 0:01:05]} 34. Kf4 {[%clk 0:01:03]}  Re6 {[%clk 0:00:56]} 35. Re1 {[%clk 0:00:56]}  e2 {[%clk 0:00:48]} 36. Rd2 {[%clk 0:00:51]}  Rf7+ {[%clk 0:00:48]} 37. Kg3 {[%clk 0:00:50]}  Re3+ {[%clk 0:00:48]} 38. Kh2 {[%clk 0:00:49]}  Rxb3 {[%clk 0:00:49]} 39. Rexe2 {[%clk 0:00:44]}  Rb4 {[%clk 0:00:44]} 40. Re6 {[%clk 0:00:44]}  Rxa4 {[%clk 0:00:39]} 41. Rdd6 {[%clk 0:00:45]}  Rxc4 {[%clk 0:00:39]} 42. Rxg6+ {[%clk 0:00:45]}  Kf8 {[%clk 0:00:38]} 43. Rh6 {[%clk 0:00:46]}  Rc5 {[%clk 0:00:38]} 44. Rd8+ {[%clk 0:00:43]}  Ke7 {[%clk 0:00:38]} 45. Ra8 {[%clk 0:00:43]}  Rc7 {[%clk 0:00:28]} 46. Rxh5 {[%clk 0:00:42]}  Rb7 {[%clk 0:00:28]} 47. Re5+ {[%clk 0:00:39]}  Kd6 {[%clk 0:00:28]} 48. Re1 {[%clk 0:00:38]}  b5 {[%clk 0:00:28]} 49. Rd8+ {[%clk 0:00:36]}  Kc7 {[%clk 0:00:27]} 50. Rd5 {[%clk 0:00:26]}  a5 {[%clk 0:00:20]} 51. Ree5 {[%clk 0:00:19]}  b4 {[%clk 0:00:18]} 52. Rc5+ {[%clk 0:00:15]}  Kd6 {[%clk 0:00:17]} 53. Red5+ {[%clk 0:00:13]}  Ke6 {[%clk 0:00:18]} 54. Re5+ {[%clk 0:00:03]}  Kf6 {[%clk 0:00:18]} 55. Rf5+ {[%clk 0:00:04]}  Kg7 {[%clk 0:00:18]} 56. Rg5+ {[%clk 0:00:04]}  Kh7 {[%clk 0:00:18]} 57. Rxa5 {[%clk 0:00:05]}  b3 {[%clk 0:00:18]} 58. Ra1 {[%clk 0:00:05]}  b2 {[%clk 0:00:16]} 59. Rb1 {[%clk 0:00:06]}  Rfc7 {[%clk 0:00:16]} 60. Rh5+ {[%clk 0:00:03]}  Kg6 {[%clk 0:00:16]} 61. Ra5 {[%clk 0:00:01]}  Rc1 {[%clk 0:00:16]} 62. Ra6+ {[%clk 0:00:01]}  Kg7 {[%clk 0:00:13]} 63. Rxb2 {[%clk 0:00:02]}  Rxb2 {[%clk 0:00:13]} 64. Ra3 {[%clk 0:00:03]}  Rcc2 {[%clk 0:00:13]} 65. Rg3+ {[%clk 0:00:04]}  Kh6 {[%clk 0:00:14]} 66. h4 {[%clk 0:00:05]}  Kh5 {[%clk 0:00:14]} 67. Kh3 {[%clk 0:00:06]}  Rc5 {[%clk 0:00:13]} 68. Re3 {[%clk 0:00:05]}  Rb4 {[%clk 0:00:12]} 69. Rf3 {[%clk 0:00:04]}  Rxh4+ {[%clk 0:00:12]} 70. Kg3 {[%clk 0:00:05]}  Rg5+ {[%clk 0:00:11]} 71. Kf2 {[%clk 0:00:04]}  Rh2 {[%clk 0:00:11]} 72. Rh3+ {[%clk 0:00:00]}  Rxh3 {[%clk 0:00:10]} 0-1


[Site "https://www.chess.com"]

[Event "Titled Tuesday Blitz August 08 Early 2023"]
[White "Atakhan, Abtin"]
[Black "Jahnz, Fabian"]
[WhiteFideId "22502203"]
[BlackFideId "4653300"]
[WhiteElo "2794"]
[BlackElo "2333"]
[Result "1-0"]
[Round "7"]
[TimeControl "180+1"]
[Date "2023.08.08"]
[WhiteClock "0:01:40"]
[BlackClock "0:00:16"]
[Board "96"]

1. Nf3 {[%clk 0:03:00]}  d5 {[%clk 0:02:59]} 2. g3 {[%clk 0:03:01]}  c5 {[%clk 0:02:59]} 3. Bg2 {[%clk 0:03:01]}  Nc6 {[%clk 0:02:59]} 4. d4 {[%clk 0:03:02]}  Nf6 {[%clk 0:02:59]} 5. O-O {[%clk 0:03:02]}  Bf5 {[%clk 0:03:00]} 6. c4 {[%clk 0:03:00]}  e6 {[%clk 0:03:00]} 7. cxd5 {[%clk 0:03:00]}  exd5 {[%clk 0:02:59]} 8. Nc3 {[%clk 0:02:58]}  Be7 {[%clk 0:02:59]} 9. dxc5 {[%clk 0:02:59]}  Bxc5 {[%clk 0:03:00]} 10. Bg5 {[%clk 0:02:58]}  Be6 {[%clk 0:02:47]} 11. Bxf6 {[%clk 0:02:57]}  gxf6 {[%clk 0:02:47]} 12. Nh4 {[%clk 0:02:53]}  O-O {[%clk 0:02:46]} 13. Bxd5 {[%clk 0:02:47]}  Bxd5 {[%clk 0:02:45]} 14. Nxd5 {[%clk 0:02:44]}  Nd4 {[%clk 0:02:39]} 15. e4 {[%clk 0:02:44]}  Kh8 {[%clk 0:02:36]} 16. Qh5 {[%clk 0:02:40]}  Ne6 {[%clk 0:02:07]} 17. Nf5 {[%clk 0:02:35]}  Ng5 {[%clk 0:02:01]} 18. Qh6 {[%clk 0:02:31]}  Rg8 {[%clk 0:01:53]} 19. Qxf6+ {[%clk 0:02:24]}  Qxf6 {[%clk 0:01:52]} 20. Nxf6 {[%clk 0:02:25]}  Rg6 {[%clk 0:01:49]} 21. Nd5 {[%clk 0:02:18]}  Nxe4 {[%clk 0:01:47]} 22. Kg2 {[%clk 0:02:07]}  Rd8 {[%clk 0:01:45]} 23. Rad1 {[%clk 0:02:05]}  Rg5 {[%clk 0:01:20]} 24. Nc3 {[%clk 0:01:52]}  Rxd1 {[%clk 0:01:15]} 25. Rxd1 {[%clk 0:01:52]}  Nxc3 {[%clk 0:01:12]} 26. Rd8+ {[%clk 0:01:52]}  Rg8 {[%clk 0:01:11]} 27. Rxg8+ {[%clk 0:01:52]}  Kxg8 {[%clk 0:01:11]} 28. bxc3 {[%clk 0:01:53]}  f6 {[%clk 0:01:08]} 29. f4 {[%clk 0:01:51]}  Kf7 {[%clk 0:01:07]} 30. Kf3 {[%clk 0:01:51]}  Ba3 {[%clk 0:01:05]} 31. Ke4 {[%clk 0:01:51]}  Bb2 {[%clk 0:01:05]} 32. c4 {[%clk 0:01:49]}  Ke6 {[%clk 0:00:57]} 33. g4 {[%clk 0:01:49]}  a6 {[%clk 0:00:54]} 34. h4 {[%clk 0:01:44]}  b5 {[%clk 0:00:51]} 35. cxb5 {[%clk 0:01:44]}  axb5 {[%clk 0:00:52]} 36. Nd4+ {[%clk 0:01:41]}  Bxd4 {[%clk 0:00:46]} 37. Kxd4 {[%clk 0:01:42]}  Kd6 {[%clk 0:00:30]} 38. f5 {[%clk 0:01:42]}  Kc6 {[%clk 0:00:29]} 39. g5 {[%clk 0:01:41]}  fxg5 {[%clk 0:00:29]} 40. hxg5 {[%clk 0:01:42]}  Kd6 {[%clk 0:00:29]} 41. f6 {[%clk 0:01:40]}  Ke6 {[%clk 0:00:16]} 42. Kc5 {[%clk 0:01:40]} 1-0


[Site "https://www.chess.com"]

[Event "Titled Tuesday Blitz August 08 Early 2023"]
[White "Womacka, Mathias"]
[Black "Mekhitarian, Krikor Sevag"]
[WhiteFideId "4611390"]
[BlackFideId "2107660"]
[WhiteElo "2512"]
[BlackElo "2733"]
[Result "0-1"]
[Round "7"]
[TimeControl "180+1"]
[Date "2023.08.08"]
[WhiteClock "0:00:12"]
[BlackClock "0:00:09"]
[Board "97"]

1. e4 {[%clk 0:03:00]}  e6 {[%clk 0:02:58]} 2. d4 {[%clk 0:02:59]}  d5 {[%clk 0:02:58]} 3. Nd2 {[%clk 0:03:00]}  c5 {[%clk 0:02:57]} 4. exd5 {[%clk 0:03:00]}  Qxd5 {[%clk 0:02:58]} 5. Ngf3 {[%clk 0:02:59]}  cxd4 {[%clk 0:02:58]} 6. Bc4 {[%clk 0:02:58]}  Qd7 {[%clk 0:02:58]} 7. O-O {[%clk 0:02:59]}  Nc6 {[%clk 0:02:58]} 8. Nb3 {[%clk 0:02:59]}  a6 {[%clk 0:02:58]} 9. Nbxd4 {[%clk 0:02:59]}  Nxd4 {[%clk 0:02:58]} 10. Nxd4 {[%clk 0:03:00]}  Qc7 {[%clk 0:02:58]} 11. Bb3 {[%clk 0:02:54]}  Bd6 {[%clk 0:02:57]} 12. h3 {[%clk 0:02:46]}  Ne7 {[%clk 0:02:50]} 13. Qh5 {[%clk 0:02:34]}  O-O {[%clk 0:02:48]} 14. Be3 {[%clk 0:02:27]}  e5 {[%clk 0:02:08]} 15. Nf3 {[%clk 0:02:24]}  Bf5 {[%clk 0:02:08]} 16. Rad1 {[%clk 0:02:07]}  Bg6 {[%clk 0:02:03]} 17. Qg4 {[%clk 0:01:59]}  Nf5 {[%clk 0:01:57]} 18. Bc1 {[%clk 0:01:53]}  e4 {[%clk 0:01:36]} 19. Ng5 {[%clk 0:01:27]}  e3 {[%clk 0:01:34]} 20. Bxe3 {[%clk 0:01:20]}  Nxe3 {[%clk 0:01:12]} 21. fxe3 {[%clk 0:01:21]}  Bc5 {[%clk 0:01:13]} 22. Rd7 {[%clk 0:01:11]}  Qb6 {[%clk 0:00:58]} 23. Nxf7 {[%clk 0:01:04]}  Bxe3+ {[%clk 0:00:49]} 24. Kh1 {[%clk 0:01:03]}  Bc5 {[%clk 0:00:14]} 25. Rf3 {[%clk 0:00:56]}  Qa5 {[%clk 0:00:07]} 26. c3 {[%clk 0:00:51]}  Qb6 {[%clk 0:00:05]} 27. Ne5+ {[%clk 0:00:35]}  Kh8 {[%clk 0:00:05]} 28. Nxg6+ {[%clk 0:00:34]}  Qxg6 {[%clk 0:00:05]} 29. Qxg6 {[%clk 0:00:34]}  hxg6 {[%clk 0:00:06]} 30. Rxb7 {[%clk 0:00:34]}  Rxf3 {[%clk 0:00:05]} 31. gxf3 {[%clk 0:00:35]}  Re8 {[%clk 0:00:03]} 32. Rc7 {[%clk 0:00:27]}  Bd6 {[%clk 0:00:03]} 33. Rc6 {[%clk 0:00:26]}  Bf4 {[%clk 0:00:02]} 34. Rxa6 {[%clk 0:00:25]}  g5 {[%clk 0:00:02]} 35. Bc4 {[%clk 0:00:22]}  Re1+ {[%clk 0:00:01]} 36. Kg2 {[%clk 0:00:22]}  Rc1 {[%clk 0:00:02]} 37. Rb6 {[%clk 0:00:21]}  Rc2+ {[%clk 0:00:02]} 38. Kf1 {[%clk 0:00:21]}  g6 {[%clk 0:00:02]} 39. Bd3 {[%clk 0:00:20]}  Rd2 {[%clk 0:00:02]} 40. Bxg6 {[%clk 0:00:20]}  Be3 {[%clk 0:00:02]} 41. Be4 {[%clk 0:00:19]}  Bxb6 {[%clk 0:00:02]} 42. b4 {[%clk 0:00:17]}  Rxa2 {[%clk 0:00:03]} 43. c4 {[%clk 0:00:18]}  Bd4 {[%clk 0:00:03]} 44. c5 {[%clk 0:00:18]}  Rb2 {[%clk 0:00:04]} 45. c6 {[%clk 0:00:17]}  Rxb4 {[%clk 0:00:03]} 46. c7 {[%clk 0:00:17]}  Rc4 {[%clk 0:00:04]} 47. Ke2 {[%clk 0:00:11]}  Rxc7 {[%clk 0:00:04]} 48. Kd3 {[%clk 0:00:12]}  Be5 {[%clk 0:00:04]} 49. Bf5 {[%clk 0:00:11]}  Re7 {[%clk 0:00:04]} 50. Bg4 {[%clk 0:00:11]}  Bf4 {[%clk 0:00:05]} 51. Kd4 {[%clk 0:00:11]}  Kg7 {[%clk 0:00:06]} 52. Kd5 {[%clk 0:00:12]}  Kf6 {[%clk 0:00:07]} 53. Kd4 {[%clk 0:00:13]}  Re5 {[%clk 0:00:07]} 54. Kd3 {[%clk 0:00:14]}  Ra5 {[%clk 0:00:07]} 55. Kd4 {[%clk 0:00:15]}  Rb5 {[%clk 0:00:06]} 56. Kd3 {[%clk 0:00:15]}  Ke5 {[%clk 0:00:06]} 57. Kc4 {[%clk 0:00:15]}  Rb8 {[%clk 0:00:05]} 58. Kd3 {[%clk 0:00:16]}  Rd8+ {[%clk 0:00:06]} 59. Kc3 {[%clk 0:00:17]}  Rd4 {[%clk 0:00:05]} 60. Kb3 {[%clk 0:00:16]}  Kd5 {[%clk 0:00:05]} 61. Kc3 {[%clk 0:00:17]}  Kc5 {[%clk 0:00:05]} 62. Bf5 {[%clk 0:00:17]}  Be5 {[%clk 0:00:05]} 63. Kc2 {[%clk 0:00:15]}  Kb4 {[%clk 0:00:05]} 64. Be4 {[%clk 0:00:15]}  Bf4 {[%clk 0:00:06]} 65. Bf5 {[%clk 0:00:14]}  Rd2+ {[%clk 0:00:06]} 66. Kb1 {[%clk 0:00:14]}  Kc3 {[%clk 0:00:06]} 67. Be6 {[%clk 0:00:14]}  Rb2+ {[%clk 0:00:07]} 68. Ka1 {[%clk 0:00:13]}  Be5 {[%clk 0:00:08]} 69. Bf5 {[%clk 0:00:12]}  Kb4 {[%clk 0:00:09]} 70. Bg4 {[%clk 0:00:12]}  Ka3 {[%clk 0:00:09]} 71. Bf5 {[%clk 0:00:12]}  Rb4# {[%clk 0:00:09]} 0-1


[Site "https://www.chess.com"]